bitfinex-derivatives/quotes_BTCF0:USTF0_20250930
["timestamp","ask_amount","ask_price","bid_price","bid_amount"]
[1759192608595,0.56136158,114390.0,114380.0,0.39429331]
[1759192609297,0.56136158,114390.0,114380.0,0.1218045]
[1759192609495,0.56136158,114390.0,114380.0,0.39429331]
[1759192610100,0.56136158,114390.0,114380.0,0.1218045]
[1759192610303,0.56136158,114390.0,114380.0,0.39429331]
[1759192610798,0.56136158,114390.0,114380.0,0.03444]
[1759192610995,0.57235158,114390.0,114380.0,0.30692881]
[1759192611196,1.39139158,114390.0,114380.0,0.39429331]
[1759192612396,0.56136158,114390.0,114380.0,0.39429331]
[1759192612601,1.38016158,114390.0,114380.0,0.39429331]
[1759192614005,0.56136158,114390.0,114380.0,0.39429331]
[1759192614301,1.38016158,114390.0,114380.0,0.39429331]
[1759192614507,1.38016158,114390.0,114380.0,0.1218045]
[1759192614801,1.38016158,114390.0,114380.0,0.39429331]
[1759192615103,1.38016158,114390.0,114380.0,0.03444]
[1759192615296,1.39115158,114390.0,114380.0,0.29416881]
[1759192616899,0.56136158,114390.0,114380.0,0.30690881]
[1759192617201,1.37964158,114390.0,114380.0,0.30690881]
[1759192617402,0.56136158,114390.0,114380.0,0.30690881]
[1759192617699,1.37920158,114390.0,114380.0,0.30690881]
[1759192618301,1.35919104,114390.0,114380.0,0.30690881]
[1759192618501,1.37983468,114390.0,114380.0,0.30690881]
[1759192619301,1.37983468,114390.0,114380.0,0.03442]
[1759192619501,1.37983468,114390.0,114380.0,0.30690881]
[1759192620705,1.37943468,114390.0,114380.0,0.30690881]
[1759192622904,1.39042468,114390.0,114380.0,0.30690881]
[1759192623606,1.38980426,114390.0,114380.0,0.30690881]
[1759192624404,1.78980426,114390.0,114380.0,0.02168]
[1759192624603,0.1234044,114380.0,114370.0,0.30633881]
[1759192624804,0.4842044,114380.0,114370.0,0.02109]
[1759192625005,0.50486823,114380.0,114370.0,0.29357881]
[1759192625205,0.50486823,114380.0,114370.0,0.39369081]
[1759192625405,0.83957,114380.0,114370.0,0.75449081]
[1759192625603,0.02333,114380.0,114370.0,0.75449081]
[1759192625800,0.02333,114380.0,114370.0,1.15749081]
[1759192626002,0.43127414,114390.0,114380.0,0.1211944]
[1759192626003,0.90988414,114390.0,114380.0,0.1211944]
[1759192626204,1.01870339,114390.0,114380.0,0.39368321]
[1759192626704,0.09420414,114390.0,114380.0,1.42697202]
[1759192627008,0.07047414,114390.0,114380.0,1.42697202]
[1759192627212,0.0004,114390.0,114380.0,1.42697202]
[1759192627411,0.15728766,114390.0,114380.0,1.42697202]
[1759192628411,0.15728766,114390.0,114380.0,1.6989373]
[1759192628612,0.15728766,114390.0,114380.0,1.6115729]
[1759192628801,0.15728766,114390.0,114380.0,1.426623]
[1759192629514,0.15728766,114390.0,114380.0,1.6989373]
[1759192631508,0.18061766,114390.0,114380.0,0.79463]
[1759192631707,0.55412766,114390.0,114380.0,0.02109]
[1759192631908,0.55412766,114390.0,114380.0,0.5657186]
[1759192632215,0.54141766,114390.0,114380.0,0.5784586]
[1759192632908,0.56207221,114390.0,114380.0,0.6658224]
[1759192633502,0.20127221,114390.0,114380.0,0.6658224]
[1759192633704,0.56207221,114390.0,114380.0,0.6658224]
[1759192633908,0.20127221,114390.0,114380.0,0.6658224]
[1759192636517,0.56207221,114390.0,114380.0,0.6658224]
[1759192639219,0.20127221,114390.0,114380.0,0.6658224]
[1759192639512,0.20127221,114390.0,114380.0,1.0266224]
[1759192640618,0.20127221,114390.0,114380.0,0.6658224]
[1759192642917,0.18061766,114390.0,114380.0,0.6658224]
[1759192647525,0.18061766,114390.0,114380.0,0.1211938]
[1759192647918,0.20127094,114390.0,114380.0,0.6658224]
[1759192651827,0.20127094,114390.0,114380.0,0.1211938]
[1759192652031,0.20127094,114390.0,114380.0,0.6658224]
[1759192653623,0.20127094,114390.0,114380.0,0.1211938]
[1759192653824,0.20127094,114390.0,114380.0,0.6658224]
[1759192654824,0.56207094,114390.0,114380.0,0.6658224]
[1759192655822,0.57478094,114390.0,114380.0,0.6658224]
[1759192656525,0.84709524,114390.0,114380.0,0.2934043]
[1759192656729,0.57478094,114390.0,114380.0,0.3807685]
[1759192657233,0.57478094,114390.0,114380.0,0.6530828]
[1759192657630,0.57478094,114390.0,114380.0,0.5657186]
[1759192659631,0.57478094,114390.0,114380.0,0.6530828]
[1759192659833,1.38622094,114390.0,114380.0,0.6530828]
[1759192660025,0.56207094,114390.0,114380.0,0.6669128]
[1759192660226,1.37335094,114390.0,114380.0,0.6669128]
[1759192660425,0.57478094,114390.0,114380.0,0.1222842]
[1759192660628,0.56207094,114390.0,114380.0,0.6669128]
[1759192661032,1.37427094,114390.0,114380.0,0.6669128]
[1759192669944,0.56207094,114390.0,114380.0,0.6669128]
[1759192670139,1.37279094,114390.0,114380.0,0.6669128]
[1759192670542,0.56207094,114390.0,114380.0,0.6669128]
[1759192670742,1.37251094,114390.0,114380.0,0.6669128]
[1759192671143,1.37231094,114390.0,114380.0,0.6669128]
[1759192672656,1.37231094,114390.0,114380.0,0.1222842]
[1759192672955,0.56207094,114390.0,114380.0,0.6669128]
[1759192673153,1.37195094,114390.0,114380.0,0.6669128]
[1759192673549,0.56207094,114390.0,114380.0,0.6669128]
[1759192673749,1.37187094,114390.0,114380.0,0.6669128]
[1759192674553,0.56207094,114390.0,114380.0,0.6669128]
[1759192674748,1.37167074,114390.0,114380.0,0.6669128]
[1759192675654,0.20127074,114390.0,114380.0,0.6669128]
[1759192675854,0.92335414,114390.0,114380.0,0.6669128]
[1759192676152,0.92299414,114390.0,114380.0,0.6669128]
[1759192676353,0.92339414,114390.0,114380.0,0.6669128]
[1759192676550,1.37155074,114390.0,114380.0,0.6669128]
[1759192676749,1.38426074,114390.0,114380.0,0.6669128]
[1759192678851,1.38426074,114390.0,114380.0,0.6669129]
[1759192679154,0.57478074,114390.0,114380.0,0.6530829]
[1759192679349,1.38446074,114390.0,114380.0,0.6530829]
[1759192682659,0.57478074,114390.0,114380.0,0.6666829]
[1759192682851,0.56207074,114390.0,114380.0,0.6666829]
[1759192683159,1.37123074,114390.0,114380.0,0.6666829]
[1759192684158,0.56207074,114390.0,114380.0,0.6666829]
[1759192684457,1.37271074,114390.0,114380.0,0.6666829]
[1759192685158,1.37275074,114390.0,114380.0,0.6666829]
[1759192685351,1.37275074,114390.0,114380.0,0.1220543]
[1759192685552,1.37275074,114390.0,114380.0,0.6666829]
[1759192686360,1.37267074,114390.0,114380.0,0.6666829]
[1759192688160,0.56207074,114390.0,114380.0,0.6666829]
[1759192688354,1.37339074,114390.0,114380.0,0.39443079]
[1759192689461,1.37340686,114390.0,114380.0,0.39443079]
[1759192690762,1.37340686,114390.0,114380.0,0.30706649]
[1759192691862,1.37340686,114390.0,114380.0,0.39443079]
[1759192692156,1.37340686,114390.0,114380.0,0.30706649]
[1759192693057,1.38611686,114390.0,114380.0,0.30706649]
[1759192696167,0.56208686,114390.0,114380.0,0.30706649]
[1759192696354,1.37200686,114390.0,114380.0,0.30706649]
[1759192696761,0.56208686,114390.0,114380.0,0.30706649]
[1759192696966,0.56208686,114390.0,114380.0,0.39443079]
[1759192697166,1.37180686,114390.0,114380.0,0.39443079]
[1759192697961,1.37200686,114390.0,114380.0,0.39443079]
[1759192698164,1.37192686,114390.0,114380.0,0.39443079]
[1759192700168,1.37192686,114390.0,114380.0,0.30706649]
[1759192700367,0.56208686,114390.0,114380.0,0.30706649]
[1759192700569,1.37156686,114390.0,114380.0,0.30706649]
[1759192702067,1.37156686,114390.0,114380.0,0.39443069]
[1759192702068,1.37152686,114390.0,114380.0,0.39443069]
[1759192702267,1.37116686,114390.0,114380.0,0.39443069]
[1759192703366,0.56208686,114390.0,114380.0,0.39443069]
[1759192703563,1.37116686,114390.0,114380.0,0.39443069]
[1759192703870,0.56208686,114390.0,114380.0,0.39443069]
[1759192704058,1.37092686,114390.0,114380.0,0.39443069]
[1759192704867,1.37092686,114390.0,114380.0,0.03469]
[1759192705168,1.37092686,114390.0,114380.0,0.30706649]
[1759192705365,1.37092686,114390.0,114380.0,0.39443069]
[1759192706871,1.38363686,114390.0,114380.0,0.39443069]
[1759192707269,1.38363686,114390.0,114380.0,0.30706649]
[1759192708979,1.37092686,114390.0,114380.0,0.39443069]
[1759192709769,1.37092686,114390.0,114380.0,0.30706649]
[1759192710770,1.38363686,114390.0,114380.0,0.30706649]
[1759192713079,1.38283686,114390.0,114380.0,0.30706649]
[1759192713981,0.57479686,114390.0,114380.0,0.30706649]
[1759192714285,1.38227686,114390.0,114380.0,0.30706649]
[1759192715082,1.38227686,114390.0,114380.0,0.39443069]
[1759192715581,1.38203686,114390.0,114380.0,0.39443069]
[1759192715983,0.57479686,114390.0,114380.0,0.39443069]
[1759192716282,1.38191686,114390.0,114380.0,0.39443069]
[1759192716985,0.57479686,114390.0,114380.0,0.39443069]
[1759192717185,1.36904686,114390.0,114380.0,0.39443069]
[1759192719089,1.36900686,114390.0,114380.0,0.39443069]
[1759192719384,0.56208686,114390.0,114380.0,0.39443069]
[1759192719586,1.36884686,114390.0,114380.0,0.39443069]
[1759192720489,1.36884686,114390.0,114380.0,0.38083069]
[1759192720689,1.38155686,114390.0,114380.0,0.29346649]
[1759192720887,1.38155686,114390.0,114380.0,0.30623649]
[1759192721186,1.36884686,114390.0,114380.0,0.30623649]
[1759192722283,0.0210694,114390.0,114380.0,1.42677718]
[1759192722483,0.0008,114400.0,114390.0,0.1227266]
[1759192722689,0.0008,114400.0,114390.0,0.66747958]
[1759192722890,0.38234,114410.0,114400.0,0.1227189]
[1759192723083,0.38314,114410.0,114400.0,0.39509539]
[1759192723282,0.38314,114410.0,114400.0,0.75589539]
[1759192723283,0.0008,114410.0,114400.0,0.75589539]
[1759192723485,1.2777145,114420.0,114410.0,0.1227113]
[1759192723687,1.2777145,114420.0,114410.0,0.39508779]
[1759192723886,1.2785145,114420.0,114410.0,0.39508779]
[1759192725581,0.4704745,114420.0,114410.0,0.39508779]
[1759192726591,0.4704745,114420.0,114410.0,0.39808779]
[1759192727187,0.02234,114420.0,114410.0,0.39808779]
[1759192727393,0.0008,114420.0,114410.0,1.07046428]
[1759192727594,1.35532543,114430.0,114420.0,0.03537]
[1759192727790,1.35612543,114430.0,114420.0,0.58012298]
[1759192728292,1.35612543,114430.0,114420.0,0.30774649]
[1759192729090,1.35912543,114430.0,114420.0,0.30774649]
[1759192729295,1.35612543,114430.0,114420.0,0.30774649]
[1759192729493,1.35912543,114430.0,114420.0,0.30774649]
[1759192732394,1.35860543,114430.0,114420.0,0.30774649]
[1759192734400,1.37917893,114430.0,114420.0,0.30774649]
[1759192737098,0.57133893,114430.0,114420.0,0.30774649]
[1759192737298,1.37893893,114430.0,114420.0,0.30774649]
[1759192738098,1.37893893,114430.0,114420.0,0.39507969]
[1759192738402,1.37893893,114430.0,114420.0,0.66745618]
[1759192738704,1.37893893,114430.0,114420.0,0.30774649]
[1759192739402,1.37893893,114430.0,114420.0,0.39507969]
[1759192739603,1.37893893,114430.0,114420.0,0.30774649]
[1759192742001,0.57133893,114430.0,114420.0,0.30774649]
[1759192742203,1.37873893,114430.0,114420.0,0.30774649]
[1759192742501,1.37873893,114430.0,114420.0,0.58012298]
[1759192743111,1.37873893,114430.0,114420.0,0.66745618]
[1759192744013,1.37873893,114430.0,114420.0,0.58012298]
[1759192745513,1.37841893,114430.0,114420.0,0.58012298]
[1759192747305,1.37841893,114430.0,114420.0,0.66745608]
[1759192748218,1.37841893,114430.0,114420.0,0.66704926]
[1759192748917,0.57133893,114430.0,114420.0,0.66704926]
[1759192749117,1.37809893,114430.0,114420.0,0.66704926]
[1759192749816,1.37809893,114430.0,114420.0,0.57971616]
[1759192752117,1.40941367,114430.0,114420.0,0.57971616]
[1759192752715,0.59393019,114430.0,114420.0,0.1227029]
[1759192752915,0.09294395,114430.0,114420.0,1.30002214]
[1759192753122,0.09214395,114430.0,114420.0,1.30002214]
[1759192753421,0.09254395,114430.0,114420.0,1.30002214]
[1759192753612,0.09254395,114430.0,114420.0,2.50654214]
[1759192753812,0.0239735,114430.0,114420.0,2.42788776]
[1759192754012,0.0235735,114430.0,114420.0,1.62136776]
[1759192754219,0.15853898,114440.0,114430.0,0.03569]
[1759192754414,0.0881235,114440.0,114430.0,0.94083616]
[1759192754617,0.0873235,114440.0,114430.0,1.74743616]
[1759192754816,0.0877235,114440.0,114430.0,1.74743616]
[1759192755116,0.1102335,114440.0,114430.0,1.74751616]
[1759192755318,0.4710335,114440.0,114430.0,0.58003616]
[1759192755522,0.4841135,114440.0,114430.0,0.30786308]
[1759192755716,0.4961135,114440.0,114430.0,0.30786308]
[1759192755910,0.50492143,114440.0,114430.0,0.30786308]
[1759192756521,0.49184143,114440.0,114430.0,0.30786308]
[1759192756722,0.4830335,114440.0,114430.0,0.30786308]
[1759192757022,0.4830335,114440.0,114430.0,0.58003616]
[1759192757616,0.1222335,114440.0,114430.0,0.66735996]
[1759192759927,0.1222335,114440.0,114430.0,0.58003616]
[1759192760427,0.1222335,114440.0,114430.0,0.66736156]
[1759192763030,0.1222335,114440.0,114430.0,1.02816156]
[1759192765129,0.1222335,114440.0,114430.0,0.94083616]
[1759192766029,0.1222335,114440.0,114430.0,1.02816166]
[1759192766333,0.14270638,114440.0,114430.0,1.02816166]
[1759192766530,0.14270638,114440.0,114430.0,0.94083616]
[1759192766734,0.51644638,114440.0,114430.0,0.02255]
[1759192767031,0.51644638,114440.0,114430.0,0.29472308]
[1759192767822,0.51644638,114440.0,114430.0,0.56689616]
[1759192768430,0.51644638,114440.0,114430.0,0.29472308]
[1759192770533,0.4959735,114440.0,114430.0,0.02255]
[1759192770725,0.4959735,114440.0,114420.0,0.9079374]
[1759192770726,0.0873255,114430.0,114420.0,0.30715308]
[1759192770934,0.50382179,114430.0,114420.0,0.57932616]
[1759192771925,0.50482179,114430.0,114420.0,0.57932616]
[1759192772125,0.50682179,114430.0,114420.0,0.57932616]
[1759192773238,0.13308179,114430.0,114420.0,0.66665926]
[1759192773840,0.13348179,114430.0,114420.0,0.66665926]
[1759192775338,0.13348179,114430.0,114420.0,1.02745926]
[1759192775641,0.13348179,114430.0,114420.0,0.4831131]
[1759192775833,0.13348179,114430.0,114420.0,1.02745926]
[1759192778042,0.13348189,114430.0,114420.0,1.29963234]
[1759192778544,0.13308189,114430.0,114420.0,1.29963234]
[1759192778745,0.13348189,114430.0,114420.0,1.29963234]
[1759192779144,0.11120189,114430.0,114420.0,1.29963234]
[1759192779545,0.11080189,114430.0,114420.0,1.29963234]
[1759192779849,0.11120189,114430.0,114420.0,1.29963234]
[1759192780144,0.02387629,114430.0,114420.0,1.69963234]
[1759192780642,0.02347629,114430.0,114420.0,1.29963234]
[1759192780845,0.02387629,114430.0,114420.0,1.29963234]
[1759192781640,0.11120189,114430.0,114420.0,1.29963234]
[1759192781845,0.11120189,114430.0,114420.0,0.93883234]
[1759192782046,0.13348189,114430.0,114420.0,1.29963234]
[1759192782846,0.1130056,114430.0,114420.0,1.34667617]
[1759192783045,0.13351157,114430.0,114420.0,1.34667617]
[1759192783447,0.13351157,114430.0,114420.0,1.07450309]
[1759192784350,0.13351157,114430.0,114420.0,1.88154309]
[1759192785939,0.13351157,114430.0,114420.0,2.15371617]
[1759192786750,0.13351157,114430.0,114420.0,1.34667587]
[1759192786949,0.13351157,114430.0,114420.0,2.15335587]
[1759192787450,0.13351157,114430.0,114420.0,1.88118279]
[1759192787650,0.11123157,114430.0,114420.0,2.15335587]
[1759192787848,0.0907256,114430.0,114420.0,2.15335587]
[1759192789354,0.0907256,114430.0,114420.0,0.98716999]
[1759192789555,0.0907256,114430.0,114420.0,1.43280999]
[1759192789556,0.13414323,114430.0,114420.0,1.43280999]
[1759192789754,0.13414323,114430.0,114420.0,1.43248999]
[1759192790855,0.13414323,114430.0,114420.0,1.43244999]
[1759192791049,0.13414323,114430.0,114420.0,1.52018309]
[1759192791956,0.13414323,114430.0,114420.0,1.52002309]
[1759192792954,0.1136356,114430.0,114420.0,1.52002309]
[1759192796352,0.1136356,114430.0,114420.0,1.51966309]
[1759192796555,0.1136356,114430.0,114420.0,1.51942309]
[1759192797256,0.13416426,114430.0,114420.0,1.51942309]
[1759192800658,0.13416426,114430.0,114420.0,1.79159617]
[1759192801356,0.13416426,114430.0,114420.0,1.51942309]
[1759192801854,0.13416426,114430.0,114420.0,0.71370309]
[1759192802061,0.13416426,114430.0,114420.0,1.51942309]
[1759192810267,0.13416426,114430.0,114420.0,1.51937985]
[1759192811172,0.13416416,114430.0,114420.0,1.51937985]
[1759192811473,0.02392866,114430.0,114420.0,1.51937985]
[1759192812673,0.11125416,114430.0,114420.0,1.51937985]
[1759192812874,0.11125416,114430.0,114420.0,1.47233602]
[1759192813174,0.13416416,114430.0,114420.0,1.47229602]
[1759192813574,0.13416416,114430.0,114420.0,0.66661602]
[1759192813975,0.13416416,114430.0,114420.0,1.47229602]
[1759192817277,0.13416416,114430.0,114420.0,1.51933985]
[1759192817679,0.13416416,114430.0,114420.0,0.44150839]
[1759192817880,0.13416416,114430.0,114420.0,0.9279531]
[1759192817881,0.14694416,114430.0,114420.0,0.9279531]
[1759192818073,0.14694416,114430.0,114420.0,1.20010456]
[1759192820481,0.13416416,114430.0,114420.0,1.20010456]
[1759192821481,0.13416416,114430.0,114420.0,0.39446456]
[1759192822979,0.13416416,114430.0,114420.0,0.44150839]
[1759192823176,0.90817416,114430.0,114420.0,0.06925383]
[1759192823371,0.90817416,114430.0,114420.0,0.42873839]
[1759192823580,0.90817416,114430.0,114420.0,0.38169456]
[1759192824479,0.90817416,114430.0,114420.0,0.29436146]
[1759192826579,0.90817416,114430.0,114420.0,0.02221]
[1759192826781,0.90817416,114430.0,114420.0,0.29436146]
[1759192828186,1.71377416,114430.0,114420.0,0.29436146]
[1759192828386,0.90817416,114430.0,114420.0,0.29436146]
[1759192828589,1.71377416,114430.0,114420.0,0.38169476]
[1759192828977,1.70056416,114430.0,114420.0,0.39506476]
[1759192829277,0.13416416,114430.0,114420.0,0.66721622]
[1759192829478,0.13376416,114430.0,114420.0,0.66721622]
[1759192829686,0.13416416,114430.0,114420.0,0.39506466]
[1759192833585,0.49496416,114430.0,114420.0,0.39506466]
[1759192839889,0.49496416,114430.0,114420.0,0.38169486]
[1759192839890,0.90774416,114430.0,114420.0,0.38169486]
[1759192840093,0.90774416,114430.0,114420.0,0.29436146]
[1759192840394,0.50774416,114430.0,114420.0,0.38169476]
[1759192844697,0.50774416,114430.0,114420.0,0.29436146]
[1759192844897,0.90774416,114430.0,114420.0,0.29436146]
[1759192848799,1.70032416,114430.0,114420.0,0.30826146]
[1759192849297,0.89496416,114430.0,114420.0,0.30826146]
[1759192849496,1.70032416,114430.0,114420.0,0.30826146]
[1759192849996,1.70032416,114430.0,114420.0,0.39559476]
[1759192851398,0.89496416,114430.0,114420.0,0.39559476]
[1759192851600,1.70028416,114430.0,114420.0,0.39559476]
[1759192852894,0.89496416,114430.0,114420.0,0.39559476]
[1759192853103,1.30024416,114430.0,114420.0,0.39559476]
[1759192853302,0.49496416,114430.0,114420.0,0.39559476]
[1759192853696,1.30024416,114430.0,114420.0,0.39559476]
[1759192853896,0.49496416,114430.0,114420.0,0.66774622]
[1759192854103,1.29984416,114430.0,114420.0,0.66774622]
[1759192854396,1.30024416,114430.0,114420.0,0.39559476]
[1759192856807,0.49496416,114430.0,114420.0,0.39559476]
[1759192857105,1.30020416,114430.0,114420.0,0.66774622]
[1759192858206,1.30020416,114430.0,114420.0,0.1234433]
[1759192858504,1.30020416,114430.0,114420.0,0.66774622]
[1759192859002,0.49496416,114430.0,114420.0,0.66774622]
[1759192859204,1.30020416,114430.0,114420.0,0.66774622]
[1759192860302,0.40763866,114430.0,114420.0,0.66774622]
[1759192860503,0.02352866,114430.0,114420.0,1.02854622]
[1759192860703,0.02392866,114430.0,114420.0,1.02854622]
[1759192861099,0.49385436,114430.0,114420.0,0.30826146]
[1759192861306,0.49425436,114430.0,114420.0,0.39559476]
[1759192861806,0.13345436,114430.0,114420.0,0.39559476]
[1759192863513,0.13345436,114430.0,114420.0,0.66774622]
[1759192864606,0.49425436,114430.0,114420.0,0.03611]
[1759192864909,0.49425436,114430.0,114420.0,0.30826146]
[1759192865207,0.13345436,114430.0,114420.0,0.39559466]
[1759192865407,0.13345436,114430.0,114420.0,1.02854612]
[1759192865710,0.11125436,114430.0,114420.0,1.02854612]
[1759192866010,0.13305436,114430.0,114420.0,1.02854612]
[1759192866215,0.13345436,114430.0,114420.0,1.02854612]
[1759192867611,0.13345436,114430.0,114420.0,0.66774612]
[1759192870412,0.13345436,114430.0,114420.0,0.66774604]
[1759192870607,0.11125436,114430.0,114420.0,0.66774604]
[1759192870813,0.02392866,114430.0,114420.0,0.93989746]
[1759192871310,0.02392866,114430.0,114420.0,1.33989746]
[1759192871511,0.02352866,114430.0,114420.0,1.70069746]
[1759192871712,0.02392866,114430.0,114420.0,1.70069746]
[1759192872111,0.02352866,114430.0,114420.0,1.70069746]
[1759192872621,0.02092866,114430.0,114420.0,1.71769746]
[1759192872912,0.0873181,114440.0,114430.0,0.1240152]
[1759192873111,0.10896394,114440.0,114430.0,1.47335804]
[1759192873414,0.10856394,114440.0,114430.0,1.47335804]
[1759192873617,0.13076394,114440.0,114430.0,1.47335804]
[1759192874414,0.13076394,114440.0,114430.0,1.47835804]
[1759192875218,0.10856394,114440.0,114430.0,1.48435804]
[1759192876418,0.10856394,114440.0,114430.0,2.51730946]
[1759192876419,0.02124584,114440.0,114430.0,2.51730946]
[1759192876712,0.4481079,114460.0,114450.0,0.1227002]
[1759192876713,0.4711579,114460.0,114450.0,0.1227002]
[1759192876919,0.49199687,114460.0,114450.0,0.66700304]
[1759192877114,0.04388897,114460.0,114450.0,0.66700304]
[1759192877313,0.04388897,114460.0,114450.0,1.02780304]
[1759192877516,0.38385,114480.0,114470.0,0.03539]
[1759192877821,0.39241891,114490.0,114480.0,0.1226773]
[1759192878017,0.46221715,114490.0,114480.0,0.66698014]
[1759192878219,0.46261715,114490.0,114480.0,0.66698014]
[1759192878524,0.54989685,114490.0,114480.0,0.66698014]
[1759192878818,0.46261715,114490.0,114480.0,0.66698014]
[1759192879419,0.54989685,114490.0,114480.0,0.66698014]
[1759192879609,0.56189685,114490.0,114480.0,0.66698014]
[1759192880213,0.54989685,114490.0,114480.0,0.66698014]
[1759192880920,0.56089685,114490.0,114480.0,0.66698014]
[1759192883326,0.56089685,114490.0,114480.0,1.47182014]
[1759192883719,0.56089685,114490.0,114480.0,0.66698014]
[1759192884023,0.56089685,114490.0,114480.0,1.47178014]
[1759192884426,0.56089685,114490.0,114480.0,0.66698014]
[1759192884616,0.56089685,114490.0,114480.0,1.47174014]
[1759192884818,0.56089685,114490.0,114480.0,0.66698014]
[1759192885013,0.011,114490.0,114480.0,0.93913156]
[1759192885223,0.02010865,114490.0,114480.0,1.74389156]
[1759192885423,0.0114,114490.0,114480.0,1.33913156]
[1759192885915,0.0114,114490.0,114480.0,2.14389156]
[1759192886318,0.0114,114490.0,114480.0,2.14385156]
[1759192886512,0.0114,114490.0,114480.0,1.33913156]
[1759192886718,0.0114,114490.0,114480.0,2.14385156]
[1759192888027,0.0114,114490.0,114480.0,1.33913156]
[1759192888222,0.0114,114490.0,114480.0,2.14385156]
[1759192888725,0.0114,114490.0,114480.0,2.14381156]
[1759192889224,0.0986798,114490.0,114480.0,1.33913156]
[1759192889425,0.0986798,114490.0,114480.0,2.14381156]
[1759192890122,0.0986798,114490.0,114480.0,1.33913176]
[1759192890322,0.0986798,114490.0,114480.0,2.14377176]
[1759192891630,0.0916798,114490.0,114480.0,2.14373176]
[1759192892430,0.0916798,114490.0,114480.0,0.97969284]
[1759192892729,0.4741098,114490.0,114480.0,0.57969284]
[1759192892928,0.4721098,114490.0,114480.0,1.38425284]
[1759192893124,0.4721098,114490.0,114480.0,1.47154024]
[1759192893729,0.4721098,114490.0,114480.0,0.66698024]
[1759192893930,0.4721098,114490.0,114480.0,1.47154024]
[1759192894432,0.4721098,114490.0,114480.0,0.66698024]
[1759192894627,0.8721098,114490.0,114480.0,0.1226774]
[1759192894833,1.15714122,114490.0,114480.0,0.29360142]
[1759192895138,1.17774205,114490.0,114480.0,0.29360142]
[1759192895730,0.90559063,114490.0,114480.0,0.29360142]
[1759192896530,1.17774205,114490.0,114480.0,0.29360142]
[1759192897432,1.98226205,114490.0,114480.0,0.29360142]
[1759192898033,1.71011063,114490.0,114480.0,0.29360142]
[1759192898734,0.90559063,114490.0,114480.0,0.29360142]
[1759192898928,1.71007063,114490.0,114480.0,0.29360142]
[1759192899525,1.31007063,114490.0,114480.0,0.29360142]
[1759192900336,0.50559063,114490.0,114480.0,0.29360142]
[1759192900527,1.31007063,114490.0,114480.0,0.29360142]
[1759192900726,1.58222205,114490.0,114480.0,0.02145]
[1759192900931,1.58222205,114490.0,114480.0,0.29360142]
[1759192901832,0.0983751,114470.0,114460.0,0.02135]
[1759192902037,1.91819652,114470.0,114460.0,0.29350142]
[1759192902240,1.93883607,114470.0,114460.0,0.29350142]
[1759192902627,1.13439607,114470.0,114460.0,0.29350142]
[1759192902822,0.1089403,114450.0,114440.0,0.30749142]
[1759192903022,0.47837985,114450.0,114440.0,0.57964284]
[1759192904041,0.47837985,114450.0,114440.0,0.58964284]
[1759192910536,0.47837985,114450.0,114440.0,0.67696084]
[1759192910839,0.02063955,114450.0,114440.0,1.30991226]
[1759192911039,0.10834985,114450.0,114440.0,1.30991226]
[1759192911240,0.0877103,114450.0,114440.0,1.03776084]
[1759192911442,0.0877103,114450.0,114440.0,1.30991226]
[1759192911742,0.0877103,114450.0,114440.0,1.03776084]
[1759192912043,0.0877103,114450.0,114440.0,1.30991226]
[1759192912743,0.1097603,114450.0,114440.0,0.493458]
[1759192912940,0.1097603,114450.0,114440.0,1.03776084]
[1759192913334,0.1097603,114450.0,114440.0,1.03776074]
[1759192914841,0.4705603,114450.0,114440.0,1.48140084]
[1759192916744,0.1097603,114450.0,114440.0,1.48140084]
[1759192918841,0.1097603,114450.0,114440.0,0.67696084]
[1759192919045,0.1097603,114450.0,114440.0,1.48136084]
[1759192919942,0.1097603,114450.0,114440.0,0.67696084]
[1759192920141,0.1097603,114450.0,114440.0,0.58964284]
[1759192921350,0.1097603,114450.0,114440.0,0.67696074]
[1759192922948,0.4705603,114450.0,114440.0,0.58964284]
[1759192923150,0.4834403,114450.0,114440.0,0.58964284]
[1759192923650,0.4834403,114450.0,114440.0,0.04534]
[1759192923839,0.4834403,114450.0,114440.0,0.57565284]
[1759192924537,0.4705603,114450.0,114440.0,0.58952284]
[1759192924950,0.49124199,114450.0,114440.0,0.58952284]
[1759192925347,1.29556199,114450.0,114440.0,0.58952284]
[1759192928944,1.29556199,114450.0,114440.0,0.57952284]
[1759192929150,1.29756199,114450.0,114440.0,0.57952284]
[1759192929650,1.29556199,114450.0,114440.0,0.57952284]
[1759192929948,1.29656199,114450.0,114440.0,0.57952284]
[1759192932347,1.29652199,114450.0,114440.0,0.39464479]
[1759192932548,0.93572199,114450.0,114440.0,0.39464479]
[1759192933051,0.93568199,114450.0,114440.0,0.39464479]
[1759192935054,0.93568199,114450.0,114440.0,0.30732679]
[1759192935862,1.29648199,114450.0,114440.0,0.03522]
[1759192936154,1.29648199,114450.0,114440.0,0.39464479]
[1759192936356,0.93564199,114450.0,114440.0,0.39464479]
[1759192938759,0.13144199,114450.0,114440.0,0.39464479]
[1759192939056,0.93564199,114450.0,114440.0,0.39464479]
[1759192941656,0.93560199,114450.0,114440.0,0.39464479]
[1759192941853,0.13144199,114450.0,114440.0,0.39464479]
[1759192942055,0.93560199,114450.0,114440.0,0.39464479]
[1759192943554,0.93560199,114450.0,114440.0,0.122538]
[1759192943755,0.93560199,114450.0,114440.0,0.39464479]
[1759192946956,0.13144199,114450.0,114440.0,0.39464479]
[1759192947262,0.93556199,114450.0,114440.0,0.39464479]
[1759192947658,0.13144199,114450.0,114440.0,0.39464479]
[1759192947860,1.30899199,114450.0,114440.0,0.30676679]
[1759192949161,1.30899199,114450.0,114440.0,0.39408479]
[1759192951256,1.30899199,114450.0,114440.0,0.30676679]
[1759192952762,1.70899199,114450.0,114440.0,0.29345679]
[1759192952965,0.122328,114440.0,114430.0,0.29370679]
[1759192953165,0.77591648,114440.0,114430.0,0.0216]
[1759192953468,1.30780969,114440.0,114430.0,0.29370679]
[1759192953658,0.50380969,114440.0,114430.0,0.29370679]
[1759192953860,0.41649169,114440.0,114430.0,0.38103239]
[1759192954258,0.04302169,114440.0,114430.0,0.75514239]
[1759192954458,0.84702169,114440.0,114430.0,0.75914239]
[1759192954763,0.02108169,114440.0,114430.0,1.15914239]
[1759192954971,0.02068169,114440.0,114430.0,2.23524918]
[1759192955163,1.25656548,114460.0,114450.0,0.1222204]
[1759192955361,1.36459901,114460.0,114450.0,0.66643398]
[1759192955568,1.27729631,114460.0,114450.0,0.66643398]
[1759192955868,1.36499861,114460.0,114450.0,0.66643398]
[1759192956072,1.36499861,114460.0,114450.0,0.39432719]
[1759192956370,0.56099861,114460.0,114450.0,0.39432719]
[1759192956566,1.36499861,114460.0,114450.0,0.39432719]
[1759192956772,1.36899861,114460.0,114450.0,0.30701679]
[1759192956974,1.36899861,114460.0,114450.0,0.03491]
[1759192957271,1.36899861,114460.0,114450.0,0.30701679]
[1759192957576,1.37299861,114460.0,114450.0,0.39432709]
[1759192958374,0.56899861,114460.0,114450.0,0.39432709]
[1759192958670,1.37295861,114460.0,114450.0,0.39432709]
[1759192959372,1.37295861,114460.0,114450.0,0.30701679]
[1759192960066,1.37295861,114460.0,114450.0,0.39432709]
[1759192962276,0.56899861,114460.0,114450.0,0.39432709]